bitfinex-derivatives/quotes_SOLF0:USTF0_20260114
["timestamp","ask_amount","ask_price","bid_price","bid_amount"]
[1768427140769,9.20286355,147.15,147.09,3.24791151]
[1768427141678,0.051078,147.13,147.11,0.04438947]
[1768427144784,6.1165,147.15,147.11,3.29230098]
[1768427145779,0.04988776,147.14,147.11,3.29230098]
[1768427152688,0.04988776,147.14,147.11,0.04438947]
[1768427153790,0.04988776,147.14,147.11,3.21704408]
[1768427160793,0.04988776,147.14,147.11,9.33484408]
[1768427161095,6.1154,147.17,147.12,3.17265461]
[1768427161294,9.24725063,147.18,147.12,3.17265461]
[1768427161794,95.0946,147.23,147.13,3.17265461]
[1768427161795,3.18223839,147.2,147.13,3.17265461]
[1768427161983,3.18223839,147.2,147.15,3.22308253]
[1768427162988,0.04973599,147.19,147.15,3.22308253]
[1768427165887,0.04973599,147.19,147.15,9.33908253]
[1768427166993,0.04973599,147.19,147.15,3.22308253]
[1768427169397,0.04973599,147.19,147.15,9.33918253]
[1768427169594,0.04973599,147.19,147.16,3.17265461]
[1768427169795,3.18223839,147.24,147.16,3.17265461]
[1768427170796,0.04389104,147.21,147.19,0.05051264]
[1768427176914,0.04389104,147.21,147.17,3.17265461]
[1768427178111,0.04389104,147.21,147.18,0.04953745]
[1768427202239,3.05098731,147.18,147.11,3.02269492]
[1768427202427,5.11969616,147.16,147.11,3.02269492]
[1768427203138,0.04469615,147.15,147.12,0.04654122]
[1768427203340,0.04469615,147.15,147.12,3.06923614]
[1768427203638,6.1153,147.18,147.12,3.06923614]
[1768427204434,0.0480829,147.16,147.12,3.06923614]
[1768427208338,9.21487021,147.16,147.12,0.04654122]
[1768427208542,9.21487021,147.16,147.09,3.02269492]
[1768427209441,9.21487021,147.16,147.11,0.05104598]
[1768427209636,2.06870885,147.15,147.11,0.05104598]
[1768427210144,5.11969616,147.15,147.11,0.05104598]
[1768427210343,2.06870885,147.13,147.09,3.02269492]
[1768427210546,11.23589616,147.15,147.09,3.02269492]
[1768427211538,0.04867383,147.13,147.11,0.04380192]
[1768427213246,0.04867383,147.13,147.09,3.02269492]
[1768427214438,0.04867383,147.13,147.1,0.04315933]
[1768427243068,0.04867383,147.13,147.1,3.30496049]
[1768427243259,3.13332831,147.16,147.1,3.30496049]
[1768427244274,0.04750971,147.14,147.1,3.30496049]
[1768427244774,0.04750971,147.14,147.1,9.42316049]
[1768427244975,0.04750971,147.14,147.1,3.30496049]
[1768427250671,3.13332831,147.13,147.05,3.26180116]
[1768427250872,3.13332831,147.12,147.05,3.26180116]
[1768427251777,0.04370235,147.1,147.07,0.05060835]
[1768427252076,3.17703066,147.1,147.03,3.26180116]
[1768427252269,3.13332831,147.1,147.03,3.26180116]
[1768427252876,9.25202831,147.09,147.03,3.26180116]
[1768427253074,0.04498687,147.07,147.05,0.05094433]
[1768427254478,0.04498687,147.07,147.01,3.26180116]
[1768427254673,0.04498687,147.07,147.02,6.1215]
[1768427254869,3.17831518,147.07,147.01,3.26180116]
[1768427255472,3.17831518,147.07,147.03,0.0511467]
[1768427256371,0.04498687,147.07,147.03,0.0511467]
[1768427257273,3.17831518,147.07,147.03,0.0511467]
[1768427259286,9.25332831,147.06,146.99,3.26180116]
[1768427259871,9.25372831,147.05,146.99,3.26180116]
[1768427260073,3.13332831,147.04,146.97,3.26180116]
[1768427260273,0.04557409,147.02,146.99,0.04325273]
[1768427262268,3.13332831,147.06,146.99,3.30505389]
[1768427262473,3.13332831,147.06,146.99,3.26180116]
[1768427263281,0.0511541,147.04,147.01,0.04297863]
[1768427270381,6.1184,147.1,147.02,3.11305525]
[1768427271085,9.25632073,147.1,147.02,3.11305525]
[1768427271388,0.04451322,147.07,147.05,0.05015235]
[1768427272884,3.13792073,147.1,147.05,0.05015235]
[1768427273888,0.04447846,147.09,147.05,0.05015235]
[1768427280987,0.04447846,147.09,147.05,3.1632076]
[1768427281695,0.04447846,147.09,147.05,9.2835076]
[1768427281892,0.04447846,147.09,147.06,3.11305525]
[1768427284598,9.25532073,147.12,147.06,9.23295525]
[1768427285600,9.25532073,147.12,147.07,3.11305525]
[1768427285800,0.0437223,147.1,147.08,0.04355607]
[1768427287494,9.25492073,147.14,147.08,3.15661132]
[1768427288500,0.0456101,147.12,147.08,3.15661132]
[1768427290401,0.0456101,147.12,147.08,0.04355607]
[1768427292801,3.18353083,147.12,147.03,3.11305525]
[1768427293107,3.13792073,147.11,147.03,3.11305525]
[1768427293698,0.04636148,147.08,147.06,0.05191558]
[1768427293899,0.04636148,147.08,147.03,9.23415525]
[1768427294797,0.04636148,147.08,147.04,0.04603686]
[1768427295707,0.04636148,147.08,147.04,3.15909211]
[1768427296503,9.25612073,147.11,147.04,9.27959211]
[1768427296706,6.1182,147.1,147.05,3.11305525]
[1768427297608,0.051086,147.09,147.05,3.11305525]
[1768427302506,0.051086,147.09,147.04,6.16653686]
[1768427302705,0.051086,147.09,147.04,0.04603686]
[1768427304613,6.169786,147.09,147.04,0.04603686]
[1768427313517,9.3060457,147.09,147.04,0.04603686]
[1768427315020,9.3060457,147.09,147.04,3.09617058]
[1768427341447,3.11871013,147.08,147.04,0.04603686]
[1768427342151,9.23781013,147.08,147.04,0.04603686]
[1768427342947,6.1196,147.07,147.04,0.04603686]
[1768427343147,6.1196,147.07,147.02,83.57607479]
[1768427344153,0.04529537,147.06,147.03,0.04891588]
[1768427355862,0.04529537,147.06,147.02,83.57607479]
[1768427355863,3.1640055,147.06,147.01,2.07206078]
[1768427356163,3.1640055,147.06,147.0,89.69847479]
[1768427356364,3.1640055,147.06,147.0,83.57607479]
[1768427356958,9.2840055,147.06,147.02,0.04914082]
[1768427357361,3.11871013,147.05,147.02,0.04914082]
[1768427357554,3.11871013,147.05,147.0,83.57607479]
[1768427357555,3.11871013,147.04,147.0,80.36]
[1768427357752,3.11871013,147.04,146.98,3.21607479]
[1768427358154,9.23941013,147.04,146.98,9.33927479]
[1768427358760,0.04926861,147.02,147.0,0.04681753]
[1768427361780,3.11871013,147.04,147.0,0.04681753]
[1768427362769,0.04884867,147.03,147.0,0.04681753]
[1768427365166,0.04884867,147.03,147.0,6.16921753]
[1768427365471,9.26111199,147.06,147.0,6.16921753]
[1768427366269,0.05133636,147.04,147.0,6.16921753]
[1768427372883,0.05133636,147.04,147.0,9.1742781]
[1768427380304,0.05133636,147.04,147.01,9.12696057]
[1768427380602,6.1198,147.07,147.02,3.00506057]
[1768427381409,0.05158625,147.06,147.03,0.04335377]
[1768427386413,9.31239824,147.06,146.99,9.12776057]
[1768427386614,9.26081199,147.06,147.0,3.00506057]
[1768427387413,9.26081199,147.06,147.02,0.04421454]
[1768427387614,0.04663666,147.04,147.02,0.04421454]
[1768427388115,0.04663666,147.04,146.97,86.4833]
[1768427388315,0.04663666,147.04,146.98,3.00506057]
[1768427389217,0.04663666,147.04,147.0,0.04717889]
[1768427395125,3.01289491,147.03,146.95,3.02513138]
[1768427396225,0.04699834,147.0,146.98,0.04921256]
[1768427396421,0.04740031,147.0,146.98,0.04921256]
[1768427401124,0.04740031,147.0,146.95,9.14923138]
[1768427401329,0.04740031,147.0,146.96,3.02513138]
[1768427402121,0.04740031,147.0,146.97,0.04386914]
[1768427402317,0.04740031,147.0,146.96,3.02513138]
[1768427403229,0.04740031,147.0,146.97,0.05119639]
[1768427407832,0.04740031,147.0,146.97,3.07632777]
[1768427410029,3.01289491,147.04,146.97,3.07632777]
[1768427410222,3.01289491,147.04,146.97,3.02513138]
[1768427411026,0.04867532,147.02,146.99,0.04443622]
[1768427411231,3.01289491,147.06,146.99,3.0695676]
[1768427411426,3.01289491,147.06,146.99,3.02513138]
[1768427411627,3.01289491,147.06,146.95,3.02513138]
[1768427411827,9.13369491,147.04,146.98,3.02513138]
[1768427412333,0.05171004,147.02,147.0,0.04965303]
[1768427434141,3.23862654,147.08,147.0,3.16706431]
[1768427434142,3.1913794,147.07,147.0,3.16706431]
[1768427435139,0.04770456,147.05,147.0,3.16706431]
[1768427435747,0.04770456,147.05,147.01,6.1219]
[1768427436145,0.04770456,147.05,147.01,9.23931128]
[1768427439966,0.04770456,147.05,147.02,9.23891128]
[1768427443569,0.04770456,147.05,147.02,3.11741128]
[1768427447467,11.38267514,147.1,147.03,3.11741128]
[1768427448565,0.04509391,147.08,147.05,0.04774587]
[1768427449366,0.04509391,147.08,147.03,3.11741128]
[1768427450369,0.04509391,147.08,147.04,0.05039852]
[1768427451166,6.16419391,147.08,147.04,0.05039852]
[1768427451769,9.25704949,147.08,147.04,0.05039852]
[1768427461579,6.16419391,147.08,147.04,0.05039852]
[1768427464581,9.25704949,147.08,147.03,3.11741128]
[1768427464887,9.21245558,147.07,147.01,6.122]
[1768427465585,9.21245558,147.07,147.03,0.04632649]
[1768427466873,3.09285558,147.06,147.0,9.41510522]
[1768427467786,0.04845027,147.04,147.02,0.04278222]
[1768427471974,3.14130585,147.04,146.98,89.79560522]
[1768427472180,3.14130585,147.04,146.98,83.67270522]
[1768427472382,3.14130585,147.04,146.98,3.29270522]
[1768427472781,6.1212,147.03,146.98,3.29270522]
[1768427473178,9.21405558,147.03,146.99,0.04661897]
[1768427473889,3.09285558,147.03,146.99,0.04661897]
[1768427481998,3.15151792,147.02,146.94,80.36]
[1768427482893,0.05144785,146.99,146.93,9.33610399]
[1768427483090,0.05144785,146.99,146.94,3.21120399]
[1768427483993,0.05144785,146.99,146.95,0.04365253]
[1768427484394,6.17434785,146.99,146.95,0.04365253]
[1768427484597,9.32586577,146.99,146.95,0.04365253]
[1768427485895,3.20296577,146.99,146.95,0.04365253]
[1768427486400,9.32586577,146.99,146.95,0.04365253]
[1768427487002,9.32586577,146.99,146.92,3.21120399]
[1768427487200,3.15151792,146.98,146.92,3.21120399]
[1768427487990,3.15151792,146.98,146.94,0.04368327]
[1768427494910,9.27481792,146.98,146.94,0.04368327]
[1768427498210,3.15151792,146.98,146.94,0.04368327]
[1768427503114,0.05144785,146.99,146.94,0.04368327]
[1768427503507,3.20296577,146.99,146.94,0.04368327]
[1768427504809,3.20296577,146.99,146.94,6.16858327]
[1768427506907,3.20296577,146.99,146.94,0.04368327]
[1768427515419,9.32576577,146.99,146.94,0.04368327]
[1768427516513,2.99084459,146.98,146.91,3.17291907]
[1768427516717,2.99084459,146.98,146.9,80.38]
[1768427517416,0.05104455,146.95,146.9,80.38]
[1768427517917,0.05104455,146.95,146.9,86.5065]
[1768427518421,0.05104455,146.95,146.9,89.67941907]
[1768427519922,0.05104455,146.95,146.91,9.29901907]
[1768427520815,2.99084459,146.96,146.91,9.29901907]
[1768427521524,2.99084459,146.99,146.93,3.17291907]
[1768427521824,9.11354459,147.0,146.93,3.17291907]
[1768427522023,0.04465677,146.97,146.95,0.04425048]
[1768427522926,9.11354459,147.0,146.95,0.04425048]
[1768427523423,2.99084459,147.0,146.95,0.04425048]
[1768427524023,0.04844632,146.99,146.95,0.04425048]
[1768427526022,0.04844632,146.99,146.95,3.21716955]
[1768427526626,2.99084459,147.02,146.95,3.21716955]
[1768427527630,0.04527172,147.0,146.96,6.1239]
[1768427528232,0.04527172,147.0,146.95,3.21716955]
[1768427529834,0.04527172,147.0,146.95,9.34166955]
[1768427544233,0.04527172,147.0,146.95,3.21716955]
[1768427545326,0.04527172,147.0,146.96,3.28449912]
[1768427558947,9.31541652,147.04,146.96,9.40849912]
[1768427559240,3.23630139,147.03,146.97,3.28449912]
[1768427559945,0.04524029,147.01,146.99,0.04581408]
[1768427566052,3.23630139,147.05,146.99,3.3303132]
[1768427566250,3.23630139,147.05,146.99,3.28449912]
[1768427566752,9.35660139,147.05,146.99,9.40719912]
[1768427567049,0.04440294,147.03,147.01,0.04799755]
[1768427569850,0.04440294,147.03,146.98,3.28449912]
[1768427570047,11.43071627,147.04,146.98,3.28449912]
[1768427570951,0.04982495,147.02,146.98,3.28449912]
[1768427579063,0.04982495,147.02,146.99,0.04307934]
[1768427579263,3.09529975,147.01,146.94,3.10630976]
[1768427579468,5.16881463,147.0,146.94,3.10630976]
[1768427580260,0.04905334,146.98,146.94,3.10630976]
[1768427583567,0.04905334,146.98,146.94,9.23110976]
[1768427583771,11.29081463,147.02,146.95,3.15539527]
[1768427584870,0.0496597,147.0,146.95,3.15539527]
[1768427593973,5.16881463,147.04,146.95,3.15539527]
[1768427594165,3.09529975,147.04,146.95,3.10630976]
[1768427594370,3.09529975,147.06,146.97,3.10630976]
[1768427594669,5.16881463,147.05,146.97,3.10630976]
[1768427594874,0.05132658,147.02,147.0,0.04671222]
[1768427600782,11.28911463,147.05,147.0,0.04671222]
[1768427601782,0.05041712,147.04,147.0,0.04671222]
[1768427606792,6.17111712,147.04,147.0,0.04671222]
[1768427607485,9.22698519,147.04,147.0,0.04671222]
[1768427617387,3.10628519,147.04,147.0,0.04671222]
[1768427617592,9.17716807,147.03,146.97,9.16070915]
[1768427618591,9.17716807,147.03,146.99,0.04893466]
[1768427620895,9.17746807,147.02,146.99,0.04893466]
[1768427621192,3.05586807,147.02,146.97,3.03710915]
[1768427622091,0.04718267,147.01,146.98,0.05160257]
[1768427622793,6.16928267,147.01,146.98,0.05160257]
[1768427624494,6.16928267,147.01,146.95,9.16150915]
[1768427625390,9.22515074,147.01,146.95,9.16150915]
[1768427625597,3.05586807,146.99,146.93,3.03710915]
[1768427626495,0.0471369,146.97,146.95,0.04576749]
[1768427633401,3.05586807,146.99,146.95,0.04576749]
[1768427634498,0.05124432,146.98,146.95,0.04576749]
[1768427648608,3.00538601,146.97,146.9,3.02856377]
[1768427649412,3.00538601,146.94,146.87,3.02856377]
[1768427649608,0.0502893,146.92,146.89,0.04751976]
[1768427650418,3.05567531,146.92,146.85,9.15696377]
[1768427651021,3.05567531,146.92,146.86,3.02856377]
[1768427651221,3.05567531,146.92,146.83,17.72943026]
[1768427651422,3.00538601,146.92,146.84,3.02856377]
[1768427651624,0.04319926,146.89,146.86,0.0468495]
[1768427652318,3.00538601,146.91,146.86,3.07541327]
[1768427652524,3.00538601,146.93,146.86,3.07541327]
[1768427652719,3.00538601,146.93,146.86,3.02856377]
[1768427653023,3.24188477,146.95,146.88,3.02856377]
[1768427653024,6.24727078,146.95,146.88,3.02856377]
[1768427653224,3.00538601,146.94,146.88,3.02856377]
[1768427653522,0.05069612,146.93,146.9,0.05041433]
[1768427656017,3.00538601,146.92,146.85,3.02856377]
[1768427656617,3.00538601,146.88,146.83,14.70086649]
[1768427657019,0.04331769,146.87,146.84,0.04608157]
[1768427657422,0.04331769,146.87,146.83,14.70086649]
[1768427657624,3.24188477,146.85,146.71,3.02856377]
[1768427657824,98.62218477,146.79,146.62,95.4785]
[1768427658121,98.62218477,146.79,146.62,95.4806]
[1768427658122,3.24188477,146.76,146.62,95.4806]
[1768427658324,3.24188477,146.73,146.6,3.24188477]
[1768427658530,0.04332138,146.68,146.65,0.02323621]
[1768427659824,0.04332138,146.68,146.62,3.02856377]
[1768427660035,0.04332138,146.68,146.57,86.5603]
[1768427660036,95.4538,146.67,146.59,3.02856377]
[1768427660225,98.69568477,146.67,146.58,3.02856377]
[1768427660426,95.4678,146.65,146.58,3.02856377]
[1768427660625,3.24188477,146.68,146.54,179.21738477]
[1768427661025,9.37798477,146.68,146.56,6.1404]
[1768427661329,3.24188477,146.66,146.52,98.78818477]
[1768427661636,9.37878477,146.66,146.52,104.93058477]
[1768427661824,9.37878477,146.66,146.53,80.46]
[1768427662127,0.04587752,146.61,146.53,80.46]
[1768427662323,0.04587752,146.61,146.56,0.04342968]
[1768427662532,95.4384,146.7,146.57,3.01339857]
[1768427662823,95.4384,146.7,146.54,3.01339857]
[1768427662824,98.70148477,146.66,146.54,3.01339857]
[1768427663234,98.71438477,146.64,146.54,3.01339857]
[1768427663428,98.71438477,146.64,146.52,3.01339857]
[1768427663629,0.04632325,146.6,146.57,0.04410986]
[1768427664130,0.04632325,146.6,146.52,3.01339857]
[1768427664534,98.78670802,146.6,146.48,3.01339857]
[1768427664734,3.24188477,146.6,146.48,3.01339857]
[1768427665039,3.24188477,146.64,146.51,3.01339857]
[1768427665225,0.0433535,146.59,146.56,0.04519734]
[1768427665426,98.71668477,146.64,146.53,3.01339857]
[1768427665736,3.24188477,146.61,146.5,3.01339857]
[1768427666037,101.6375,146.6,146.5,3.01339857]
[1768427666234,95.4806,146.63,146.5,3.01339857]
[1768427666429,0.0463262,146.58,146.5,3.01339857]
[1768427666735,0.0463262,146.58,146.5,98.57299857]
[1768427666928,0.0463262,146.58,146.51,95.5562]
[1768427667122,3.24188477,146.67,146.54,95.5339]
[1768427667328,6.136,146.68,146.55,182.1893]
[1768427667534,3.24188477,146.67,146.55,182.1893]
[1768427667839,3.24188477,146.67,146.55,86.6611]
[1768427668133,0.04886942,146.62,146.6,0.04291098]
[1768427668324,0.04403696,146.62,146.6,0.04291098]
[1768427669326,3.24188477,146.67,146.6,0.04291098]
[1768427670229,0.04646263,146.65,146.6,0.04291098]
[1768427671231,3.24188477,146.69,146.6,3.05630955]
[1768427671439,3.24188477,146.71,146.6,3.01339857]
[1768427672340,0.04843051,146.67,146.64,0.04994858]
[1768427673633,0.04843051,146.67,146.58,6.1399]
[1768427673842,3.24188477,146.69,146.58,9.15329857]
[1768427674145,3.24188477,146.66,146.55,86.6609]
[1768427674348,95.4534,146.67,146.53,3.01339857]
[1768427674639,3.24188477,146.67,146.59,0.04405767]
[1768427675346,9.37728477,146.69,146.59,3.05745624]
[1768427675547,9.37728477,146.69,146.59,3.01339857]
[1768427675841,0.04487396,146.65,146.59,3.01339857]
[1768427677339,0.04487396,146.65,146.59,9.15269857]
[1768427677547,0.04487396,146.65,146.61,0.04897903]
[1768427678538,0.04487396,146.65,146.56,83.57339857]
[1768427678539,0.04487396,146.65,146.56,3.01339857]
[1768427678742,3.24188477,146.64,146.56,3.01339857]
[1768427679540,0.04439511,146.61,146.56,3.01339857]
[1768427680141,0.04439511,146.61,146.57,0.03108135]
[1768427680439,3.24188477,146.69,146.57,3.04447992]
[1768427680643,3.24188477,146.67,146.57,3.01339857]
[1768427681244,3.24188477,146.69,146.59,3.01339857]
[1768427681436,0.04905403,146.65,146.63,0.0439098]
[1768427681635,0.04905403,146.65,146.59,3.01339857]
[1768427682644,0.04905403,146.65,146.61,0.03156666]
[1768427683842,0.04905403,146.65,146.59,3.01339857]
[1768427684046,3.2909388,146.65,146.56,3.01339857]
[1768427684250,3.24188477,146.65,146.56,3.01339857]
[1768427684548,3.24188477,146.63,146.56,3.01339857]
[1768427684950,95.4624,146.66,146.56,3.01339857]
[1768427684951,0.04887163,146.61,146.56,3.01339857]
[1768427686844,0.04887163,146.61,146.56,9.15399857]
[1768427688452,0.04887163,146.61,146.53,3.01339857]
[1768427688651,0.04522966,146.58,146.53,3.01339857]
[1768427688846,98.71118477,146.65,146.53,3.01339857]
[1768427689046,3.24188477,146.63,146.53,3.01339857]
[1768427689246,6.1386,146.62,146.55,3.01339857]
[1768427689444,3.24188477,146.65,146.55,3.01339857]
[1768427689853,0.04519226,146.61,146.57,3.01339857]
[1768427690051,3.24188477,146.68,146.59,0.04456437]
[1768427690251,3.24188477,146.68,146.57,3.01339857]
[1768427690550,6.1367,146.66,146.57,3.01339857]
[1768427690846,3.24188477,146.66,146.57,3.01339857]
[1768427691052,0.05175163,146.63,146.54,4.11879582]
[1768427691246,3.29312199,146.6,146.51,4.11879582]
[1768427691440,0.04441415,146.57,146.51,4.11879582]
[1768427693857,0.04441415,146.57,146.51,10.26149582]
[1768427694454,6.1389,146.61,146.53,4.11879582]
[1768427694946,5.32397627,146.62,146.48,4.11879582]
[1768427695149,5.32397627,146.62,146.46,111.24962415]
[1768427695150,5.32397627,146.59,146.49,4.11879582]
[1768427695351,95.4926,146.61,146.49,4.11879582]
[1768427695553,0.0448178,146.56,146.5,4.11879582]
[1768427696748,6.1859178,146.56,146.5,4.11879582]
[1768427696945,0.0448178,146.56,146.5,4.11879582]
[1768427697251,6.1417,146.54,146.47,4.11879582]
[1768427697447,0.04394605,146.52,146.47,4.11879582]
[1768427697654,100.82597627,146.6,146.47,4.11879582]
[1768427697655,95.5063,146.59,146.47,4.11879582]
[1768427698558,6.1411,146.56,146.49,10.26239582]
[1768427698751,0.04912187,146.54,146.49,10.26239582]
[1768427700065,6.1403,146.58,146.51,4.11879582]
[1768427700367,95.5046,146.59,146.51,4.11879582]
[1768427700554,95.5046,146.59,146.48,4.11879582]
[1768427700754,95.5112,146.58,146.48,4.11879582]
[1768427701057,0.04678935,146.54,146.52,0.04804345]
[1768427702566,95.4881,146.62,146.52,4.16683927]
[1768427702764,95.4881,146.62,146.52,4.11879582]
[1768427703665,0.04473938,146.58,146.52,4.11879582]
[1768427703870,6.18493938,146.58,146.52,4.11879582]
[1768427704263,1.40473938,146.58,146.46,15.66642415]
[1768427704465,95.5449,146.53,146.46,1e-08]
[1768427704663,95.5574,146.51,146.46,1e-08]
[1768427704861,100.87447627,146.52,146.46,1e-08]
[1768427705159,5.32397627,146.49,146.35,4.11879582]
[1768427705368,5.32397627,146.49,146.37,4.11879582]
[1768427705567,6.1438,146.49,146.41,0.05173347]
[1768427705766,80.62,146.48,146.41,0.05173347]
[1768427706269,5.32397627,146.49,146.41,0.05173347]
[1768427706466,87.56215532,146.48,146.41,0.05173347]
[1768427706768,0.04862916,146.46,146.37,4.11879582]
[1768427706968,80.64,146.48,146.37,4.11879582]
[1768427707164,5.56143089,146.47,146.37,4.11879582]
[1768427707369,11.46777627,146.49,146.37,4.11879582]
[1768427707663,86.19318916,146.48,146.42,0.04884543]
[1768427707855,80.64,146.48,146.37,4.11879582]
[1768427708058,5.32397627,146.49,146.37,4.11879582]
[1768427708263,5.32397627,146.45,146.33,4.11879582]
[1768427708457,80.64,146.44,146.33,4.11879582]
[1768427708667,176.2484,146.44,146.33,4.11879582]
[1768427708967,0.04612058,146.4,146.29,4.11879582]
[1768427709269,6.1467,146.42,146.29,4.11879582]
[1768427709456,85.98397627,146.44,146.3,4.11879582]
[1768427709661,85.98397627,146.44,146.31,4.11879582]
[1768427710068,0.04884277,146.39,146.36,0.05241378]
[1768427711161,0.04884277,146.39,146.27,4.11879582]
[1768427711361,0.04884277,146.39,146.28,4.11879582]
[1768427711362,107.10727627,146.39,146.28,4.11879582]
[1768427711566,80.66,146.38,146.28,4.11879582]
[1768427711962,80.66,146.37,146.28,4.11879582]
[1768427712172,80.66,146.37,146.31,0.05215528]
[1768427712373,80.68,146.4,146.31,4.1709511]
[1768427712576,80.68,146.4,146.31,4.11879582]
[1768427713071,182.456,146.4,146.28,10.27129582]
[1768427713261,0.04616466,146.35,146.28,4.11879582]
[1768427713458,107.09997627,146.4,146.28,4.11879582]
[1768427713672,5.32397627,146.44,146.31,4.11879582]
[1768427713868,80.68,146.43,146.31,4.11879582]
[1768427714374,6.1467,146.42,146.32,4.11879582]
[1768427714670,0.05101309,146.38,146.36,0.05213145]
[1768427714869,86.8265,146.43,146.36,0.05213145]
[1768427715867,0.04310671,146.41,146.29,4.11879582]
[1768427716070,95.6183,146.42,146.29,4.11879582]
[1768427716673,5.32397627,146.41,146.29,4.11879582]
[1768427716871,100.94997627,146.41,146.29,10.27079582]
[1768427717171,0.04698051,146.36,146.29,10.27079582]
[1768427718072,0.04698051,146.36,146.31,0.04474337]
[1768427719367,80.7,146.37,146.31,4.16353919]
[1768427719771,80.72,146.38,146.31,4.16353919]
[1768427720070,80.72,146.38,146.31,4.11879582]
[1768427720564,80.72,146.38,146.33,0.04574834]
[1768427720565,0.04863176,146.36,146.33,0.04574834]
[1768427721172,80.72,146.39,146.33,0.04574834]
[1768427722074,0.05000512,146.37,146.33,0.04574834]
[1768427722473,80.77000512,146.37,146.33,0.04574834]
[1768427722874,100.92947627,146.44,146.33,5.01895583]
[1768427723072,80.72,146.43,146.33,4.97320749]
[1768427723267,80.72,146.42,146.33,4.97320749]
[1768427723472,6.1468,146.42,146.33,11.12350749]
[1768427723773,0.04451605,146.39,146.36,0.05042259]
[1768427725172,80.72,146.38,146.36,0.05042259]
[1768427725674,80.72,146.38,146.33,11.12350749]
[1768427726078,80.72,146.38,146.3,11.12450749]
[1768427726275,6.1486,146.38,146.3,4.97320749]
[1768427726570,95.6196,146.42,146.3,4.97320749]
[1768427726779,0.04714631,146.37,146.3,4.97320749]
[1768427726977,80.72,146.36,146.3,4.97320749]
[1768427727770,80.72,146.36,146.32,0.05012371]
[1768427728369,0.04714631,146.37,146.32,0.05012371]
[1768427728577,6.1478,146.4,146.32,5.0233312]
[1768427728775,80.72,146.39,146.32,5.0233312]
[1768427728969,80.72,146.39,146.32,4.97320749]
[1768427729168,95.573,146.49,146.34,4.97320749]
[1768427729387,6.1456,146.45,146.36,4.97320749]
[1768427729585,0.04649543,146.42,146.39,0.04862915]
[1768427729785,80.76649543,146.42,146.39,0.04862915]
[1768427731786,0.04649543,146.42,146.39,0.04862915]
[1768427732079,80.76649543,146.42,146.39,0.04862915]
[1768427732269,0.04649543,146.42,146.39,0.04862915]
[1768427734274,0.04649543,146.42,146.39,6.19632915]
[1768427737480,5.32397627,146.51,146.4,4.97320749]
[1768427737686,5.32397627,146.54,146.4,4.97320749]
[1768427737883,80.72,146.53,146.4,4.97320749]
[1768427738075,80.72,146.52,146.4,4.97320749]
[1768427738278,6.1428,146.52,146.43,6.1461]
[1768427738480,0.05179654,146.49,146.46,0.05059448]
[1768427741181,5.32397627,146.58,146.46,5.02380197]
[1768427741385,95.4922,146.61,146.46,4.97320749]
[1768427741386,80.72,146.57,146.46,4.97320749]
[1768427741689,80.72,146.57,146.48,4.97320749]
[1768427741890,80.7,146.58,146.48,4.97320749]
[1768427742186,0.04519755,146.54,146.52,0.04445647]
[1768427745291,6.1388,146.61,146.52,0.04445647]
[1768427745492,80.68,146.6,146.5,4.97320749]
[1768427746284,0.04689367,146.56,146.5,4.97320749]
[1768427746892,0.04689367,146.56,146.5,11.11610749]
[1768427747193,0.04689367,146.56,146.51,4.97320749]
[1768427749694,0.04689367,146.56,146.52,0.04432471]
[1768427760004,0.04689367,146.56,146.52,5.73010043]
[1768427760895,6.1394,146.6,146.52,5.73010043]
[1768427761102,184.78730647,146.61,146.52,0.04432471]
[1768427761298,184.78730647,146.61,146.49,5.68577572]
[1768427761494,95.5053,146.59,146.49,5.68577572]
[1768427761801,6.1413,146.55,146.53,0.04902135]
[1768427762197,6.18450943,146.55,146.53,0.04902135]
[1768427762402,6.18450943,146.55,146.49,5.68577572]
[1768427762803,6.18450943,146.55,146.47,6.1445]
[1768427763005,6.18450943,146.55,146.47,11.83027572]
[1768427763199,6.18450943,146.55,146.48,5.68577572]
[1768427763394,6.18450943,146.55,146.5,0.04738646]
[1768427763601,6.1417,146.54,146.48,5.68577572]
[1768427764108,6.1417,146.54,146.45,11.83087572]
[1768427764305,176.1682,146.56,146.45,5.68577572]
[1768427764704,6.19219467,146.52,146.45,5.68577572]
[1768427764896,0.04959467,146.52,146.45,5.68577572]
[1768427766009,0.04959467,146.52,146.47,0.05212249]
[1768427767820,0.04959467,146.52,146.47,5.73789821]
[1768427768120,0.04959467,146.52,146.47,0.05212249]
[1768427768818,0.04959467,146.52,146.47,5.73789821]
[1768427769913,0.04959467,146.52,146.47,11.88239821]
[1768427770112,6.1414,146.55,146.48,5.68577572]
[1768427771117,0.04637894,146.53,146.5,0.04452864]
[1768427773321,0.04637894,146.53,146.46,5.68577572]
[1768427774325,0.04637894,146.53,146.48,0.04475229]
[1768427774821,6.1427,146.52,146.48,0.04475229]
[1768427776223,80.66,146.51,146.39,5.68577572]
[1768427776622,95.5644,146.5,146.4,5.68577572]